bitfinex-derivatives/quotes_SOLF0:USTF0_20251216
["timestamp","ask_amount","ask_price","bid_price","bid_amount"]
[1765884654412,7.06041415,128.54,128.51,3.22042537]
[1765884654610,2.55676465,128.53,128.51,3.22042537]
[1765884655811,9.6171788,128.54,128.51,3.22042537]
[1765884656717,2.55676465,128.52,128.51,0.05042537]
[1765884657222,109.00071415,128.54,128.51,0.05042537]
[1765884657515,109.00071415,128.54,128.53,9.351e-05]
[1765884658113,7.06021415,128.54,128.53,9.351e-05]
[1765884658615,9.6169788,128.54,128.53,9.351e-05]
[1765884658817,2.6137788,128.54,128.52,3.17]
[1765884659219,0.05701415,128.54,128.52,3.17]
[1765884659519,2.6137788,128.54,128.52,3.17]
[1765884660626,2.6137788,128.54,128.51,3.22042537]
[1765884661330,2.55676465,128.52,128.51,0.05042537]
[1765884661716,2.55676465,128.52,128.45,2.55676465]
[1765884661717,111.51606465,128.52,128.45,3.17]
[1765884661928,2.55676465,128.49,128.45,3.17]
[1765884662418,7.0067,128.48,128.45,3.17]
[1765884662623,2.55676465,128.47,128.45,3.17]
[1765884662823,2.61164082,128.47,128.45,3.22656239]
[1765884663022,2.55676465,128.51,128.46,3.17]
[1765884663216,2.55676465,128.51,128.47,3.17]
[1765884664223,2.55676465,128.51,128.45,2.55676465]
[1765884664224,0.05479299,128.5,128.49,3.22]
[1765884670118,0.00479299,128.5,128.49,3.22]
[1765884671717,7.0034,128.54,128.49,3.22]
[1765884671924,108.9274,128.56,128.5,3.22]
[1765884671925,7.0024,128.56,128.5,3.22]
[1765884672122,7.0024,128.56,128.52,3.22]
[1765884672825,0.05646347,128.55,128.54,3.22]
[1765884674322,2.55676465,128.59,128.54,3.22]
[1765884675524,0.05920591,128.58,128.56,3.22]
[1765884675920,2.55676465,128.61,128.56,3.22]
[1765884676833,0.05710617,128.6,128.56,3.22]
[1765884677326,0.05710617,128.6,128.57,3.22]
[1765884677532,5.65974859,128.68,128.6,3.22]
[1765884677832,2.55676465,128.68,128.67,1.92730485]
[1765884678034,2.55676465,128.68,128.67,5.14730485]
[1765884678219,5.65974859,128.7,128.67,5.14730485]
[1765884678220,2.55676465,128.7,128.67,3.22]
[1765884678429,2.55676465,128.7,128.69,1.92382605]
[1765884679437,0.05032153,128.71,128.69,1.92382605]
[1765884681641,0.05032153,128.71,128.61,3.22]
[1765884681642,108.8128,128.69,128.61,3.22]
[1765884681834,6.83444877,128.67,128.61,3.22]
[1765884682029,6.83444877,128.69,128.61,3.22]
[1765884682740,6.83444877,128.69,128.67,1.91853115]
[1765884682946,6.83444877,128.69,128.67,1.97677101]
[1765884682947,6.88883108,128.69,128.67,1.97677101]
[1765884683135,6.88883108,128.69,128.67,0.05823986]
[1765884683333,6.88883108,128.69,128.67,1.97661924]
[1765884683532,6.88883108,128.69,128.67,0.05823986]
[1765884683748,6.88883108,128.69,128.67,1.97571371]
[1765884684247,6.88883108,128.69,128.68,1.91750763]
[1765884684642,0.05438231,128.69,128.68,1.91750763]
[1765884684844,0.05438231,128.69,128.67,3.27823986]
[1765884685047,0.05438231,128.69,128.67,0.05823986]
[1765884685851,0.05438231,128.69,128.67,3.27823986]
[1765884687351,181.8763,128.75,128.67,3.27823986]
[1765884687550,181.8763,128.75,128.71,1.91449519]
[1765884688052,73.1121,128.75,128.73,1.91449519]
[1765884688349,73.16402798,128.75,128.73,0.05406596]
[1765884688539,73.16402798,128.75,128.73,1.96695907]
[1765884688742,73.16402798,128.75,128.73,0.05406596]
[1765884688943,73.16402798,128.75,128.73,1.966984]
[1765884689141,73.16402798,128.75,128.73,0.05406596]
[1765884689450,73.16402798,128.75,128.73,1.96664894]
[1765884689648,73.16402798,128.75,128.73,0.05406596]
[1765884689850,73.16402798,128.75,128.73,1.96583821]
[1765884690052,73.16402798,128.75,128.73,0.05406596]
[1765884690235,73.16402798,128.75,128.73,1.96588528]
[1765884690439,73.16402798,128.75,128.73,0.05406596]
[1765884690636,73.16402798,128.75,128.73,1.96464294]
[1765884690836,73.16402798,128.75,128.73,0.05406596]
[1765884691046,73.16402798,128.75,128.73,1.96462152]
[1765884691254,181.92722798,128.75,128.73,2.152e-05]
[1765884691548,6.9931,128.73,128.69,3.22]
[1765884691753,108.7986,128.71,128.64,3.22]
[1765884691955,115.63894877,128.7,128.64,3.22]
[1765884692144,108.8128,128.69,128.64,3.22]
[1765884692343,0.05701722,128.68,128.65,3.27801752]
[1765884692552,0.05388983,128.68,128.67,1.90976987]
[1765884692944,0.05388983,128.68,128.67,5.12976987]
[1765884693248,0.05388983,128.68,128.67,3.22]
[1765884696753,0.05388983,128.68,128.66,3.16]
[1765884700352,0.05388983,128.68,128.65,3.21554292]
[1765884700553,7.04988983,128.68,128.65,0.05554292]
[1765884701157,6.9967,128.66,128.65,0.05554292]
[1765884701349,79.91114877,128.66,128.65,0.05554292]
[1765884701557,181.75654877,128.66,128.59,3.16]
[1765884701851,108.8495,128.65,128.59,3.16]
[1765884702450,0.0493353,128.63,128.61,3.20948386]
[1765884703656,6.9964,128.67,128.61,3.20948386]
[1765884704551,0.05182504,128.65,128.61,3.20948386]
[1765884708962,0.05182504,128.65,128.62,3.16]
[1765884710364,0.05182504,128.65,128.61,0.04948386]
[1765884710365,0.05182504,128.65,128.64,1.91440773]
[1765884710957,6.9981,128.64,128.61,0.04948386]
[1765884711157,73.0781,128.64,128.61,0.04948386]
[1765884712258,122.69624877,128.63,128.61,0.04948386]
[1765884712462,122.69624877,128.63,128.55,3.16]
[1765884712463,108.8938,128.6,128.55,3.16]
[1765884712667,181.83194877,128.59,128.58,4.032e-05]
[1765884712861,181.83194877,128.59,128.52,3.16]
[1765884713066,6.83444877,128.56,128.52,3.16]
[1765884713372,0.0557225,128.55,128.53,0.05316708]
[1765884713760,0.0557225,128.55,128.53,3.21316708]
[1765884714268,5.64853031,128.63,128.54,3.16]
[1765884714568,66.1,128.63,128.61,1.92057569]
[1765884715268,66.15963099,128.63,128.61,1.97522447]
[1765884715467,182.02283099,128.63,128.61,0.05464878]
[1765884716769,73.15823099,128.63,128.61,0.05464878]
[1765884718466,182.02333099,128.63,128.61,0.05464878]
[1765884721373,7.0007,128.59,128.53,3.16]
[1765884721560,66.12,128.58,128.53,3.16]
[1765884722161,0.05429027,128.57,128.55,3.16]
[1765884722769,0.05429027,128.57,128.54,0.05541557]
[1765884722960,0.00429027,128.57,128.54,3.21541557]
[1765884725961,73.1193,128.62,128.54,1.61541557]
[1765884726167,73.1193,128.62,128.55,3.12]
[1765884726367,6.9997,128.61,128.55,3.12]
[1765884726873,66.12,128.62,128.55,3.12]
[1765884727066,0.05320825,128.59,128.58,3.12]
[1765884727267,0.05320825,128.59,128.57,3.17606336]
[1765884727468,0.05320825,128.59,128.57,0.05606336]
[1765884728576,7.05370825,128.59,128.57,0.05606336]
[1765884728974,108.9102,128.58,128.54,3.12]
[1765884729173,108.9102,128.58,128.5,3.12]
[1765884729471,7.0022,128.56,128.5,3.12]
[1765884729673,66.12,128.58,128.5,3.12]
[1765884730181,73.1213,128.58,128.57,6.981e-05]
[1765884733270,73.1213,128.58,128.56,0.05009582]
[1765884733474,66.12,128.58,128.56,3.17009582]
[1765884737284,0.05259321,128.59,128.56,3.17009582]
[1765884742183,0.05259321,128.59,128.56,0.05009582]
[1765884742579,7.05329321,128.59,128.56,0.05009582]
[1765884742779,7.05329321,128.59,128.56,3.17009582]
[1765884744990,0.05259321,128.59,128.56,3.17009582]
[1765884751483,0.00259321,128.59,128.56,3.17009582]
[1765884751790,24.13077787,128.78,128.58,3.12]
[1765884751791,108.8356,128.67,128.58,3.12]
[1765884752090,108.8356,128.67,128.66,6.214e-05]
[1765884752686,5.75249723,128.68,128.66,6.214e-05]
[1765884752896,0.05823875,128.68,128.67,1.92956512]
[1765884753283,0.05823875,128.68,128.67,6.512e-05]
[1765884754291,7.05383875,128.68,128.67,6.512e-05]
[1765884757083,6.9967,128.66,128.59,3.2]
[1765884757285,66.12,128.65,128.59,3.2]
[1765884757480,66.12,128.65,128.54,108.9364]
[1765884757481,3.99071892,128.63,128.56,3.2]
[1765884757889,10.98921892,128.63,128.56,3.2]
[1765884758094,3.99071892,128.63,128.62,1.92820981]
[1765884759186,70.11071892,128.63,128.62,1.92820981]
[1765884759499,66.12,128.63,128.62,1.92820981]
[1765884759993,0.05931142,128.64,128.61,3.25627632]
[1765884770903,0.05931142,128.64,128.61,10.25537632]
[1765884771107,0.05931142,128.64,128.62,3.2]
[1765884774499,0.05931142,128.64,128.61,3.25627632]
[1765884779406,2.55360553,128.63,128.61,3.25627632]
[1765884779905,75.65210553,128.63,128.61,0.05627632]
[1765884780201,75.65210553,128.63,128.56,3.2]
[1765884780202,108.8745,128.62,128.56,3.2]
[1765884780399,2.55360553,128.58,128.56,3.2]
[1765884780807,2.55360553,128.58,128.52,3.2]
[1765884781200,0.04900021,128.56,128.55,3.2]
[1765884781808,2.55360553,128.6,128.55,3.2]
[1765884782005,66.1,128.62,128.55,3.2]
[1765884782006,2.55360553,128.61,128.55,3.2]
[1765884782410,2.55360553,128.61,128.56,3.2]
[1765884782910,0.05855735,128.6,128.58,3.2]
[1765884783701,2.55360553,128.63,128.58,3.2]
[1765884784705,0.05509213,128.62,128.58,3.2]
[1765884786913,0.05509213,128.62,128.58,10.2008]
[1765884787113,0.05509213,128.62,128.59,3.11]
[1765884788212,0.05509213,128.62,128.59,10.1102]
[1765884788414,2.5529011,128.65,128.6,3.11]
[1765884789314,0.05705927,128.64,128.62,3.11]
[1765884790108,2.5529011,128.67,128.63,3.11]
[1765884790911,2.5529011,128.7,128.64,3.11]
[1765884791114,2.5529011,128.7,128.67,3.11]
[1765884791701,174.884,128.73,128.67,3.11]
[1765884791903,2.5529011,128.69,128.67,3.11]
[1765884792207,2.5529011,128.69,128.67,3.16670159]
[1765884793616,2.5529011,128.71,128.67,3.16670159]
[1765884795007,2.5529011,128.71,128.67,0.05670159]
[1765884795008,2.5529011,128.69,128.67,0.05670159]
[1765884795415,2.5529011,128.69,128.67,3.16670159]
[1765884795611,6.9936,128.72,128.67,3.16670159]
[1765884795812,2.5529011,128.7,128.67,3.16670159]
[1765884798418,2.5529011,128.72,128.67,3.16670159]
[1765884798713,66.1,128.73,128.67,3.16670159]
[1765884798714,68.6529011,128.73,128.67,3.16670159]
[1765884799707,66.1,128.73,128.67,3.16670159]
[1765884799910,68.6529011,128.73,128.67,3.16670159]
[1765884800109,68.6529011,128.73,128.69,3.11]
[1765884800110,66.1,128.73,128.69,3.11]
[1765884800312,66.1,128.73,128.7,3.16105728]
[1765884800617,68.6529011,128.73,128.7,3.16105728]
[1765884801721,9.5460011,128.73,128.7,3.16105728]
[1765884802018,2.5529011,128.73,128.7,3.16105728]
[1765884803414,9.5460011,128.73,128.7,0.05105728]
[1765884803621,108.7736,128.74,128.7,0.05105728]
[1765884803915,6.9929,128.73,128.72,1.91404073]
[1765884804920,11.1058011,128.73,128.72,4.073e-05]
[1765884805120,9.5458011,128.73,128.72,4.073e-05]
[1765884806314,77.1858011,128.73,128.72,4.073e-05]
[1765884806522,6.994,128.71,128.7,0.05105728]
[1765884806715,9.5469011,128.71,128.7,0.05105728]
[1765884808223,6.994,128.71,128.7,0.05105728]
[1765884808424,2.5529011,128.75,128.7,3.16105728]
[1765884810615,9.5449011,128.75,128.7,3.16105728]
[1765884812020,2.5529011,128.75,128.7,3.16105728]
[1765884812418,9.5449011,128.75,128.7,3.16105728]
[1765884814024,6.992,128.75,128.7,3.16105728]
[1765884814216,9.5449011,128.75,128.7,3.16105728]
[1765884815926,2.5529011,128.73,128.7,3.16105728]
[1765884816224,2.5529011,128.71,128.7,0.05105728]
[1765884817827,174.8336,128.74,128.7,0.05105728]
[1765884818016,66.06,128.74,128.72,1.91135158]
[1765884818218,73.0523,128.74,128.73,1.91135158]
[1765884818434,73.0523,128.74,128.7,3.23105728]
[1765884818635,73.0523,128.74,128.73,1.91097783]
[1765884819343,75.6052011,128.74,128.73,1.91097783]
[1765884820639,75.6052011,128.74,128.7,3.23105728]
[1765884822342,73.0523,128.74,128.7,3.23105728]
[1765884822541,9.5461011,128.73,128.7,3.23105728]
[1765884823330,2.5529011,128.71,128.7,0.05105728]
[1765884823936,174.8331,128.74,128.7,3.23105728]
[1765884823937,2.5529011,128.73,128.7,3.23105728]
[1765884824133,75.6054011,128.74,128.7,3.23105728]
[1765884824745,66.06,128.74,128.7,3.23105728]
[1765884827649,9.5448011,128.75,128.7,3.23105728]
[1765884828342,2.5529011,128.75,128.7,3.23105728]
[1765884828539,3.7100511,128.76,128.7,3.23105728]
[1765884828736,1.15715,128.76,128.72,3.18]
[1765884829058,1.15715,128.76,128.74,3.18]
[1765884829850,2.5529011,128.75,128.73,0.05426111]
[1765884830245,9.5450011,128.75,128.73,0.05426111]
[1765884830553,6.9921,128.75,128.73,0.05426111]
[1765884830856,9.5450011,128.75,128.73,0.05426111]
[1765884832457,1.15715,128.76,128.73,3.23426111]
[1765884834655,2.5529011,128.75,128.73,0.05426111]
[1765884835759,1.15715,128.76,128.73,0.05426111]
[1765884835961,3.7100511,128.76,128.73,0.05426111]
[1765884836163,108.7958,128.71,128.64,17.35545319]
[1765884836470,2.5529011,128.66,128.61,3.18]
[1765884836663,2.5529011,128.64,128.61,3.18]
[1765884837363,3.99129677,128.63,128.61,0.05499566]
[1765884837564,66.06,128.62,128.55,3.18]
[1765884837758,3.99129677,128.6,128.53,3.18]
[1765884838362,3.99129677,128.58,128.53,3.18]
[1765884838570,3.99129677,128.56,128.5,3.18]
[1765884838855,108.907,128.58,128.52,0.05772968]
[1765884838856,3.99129677,128.54,128.52,0.05772968]
[1765884840249,0.0531277,128.55,128.52,0.05772968]
[1765884841368,0.0531277,128.55,128.54,9.355e-05]
[1765884842863,217.888,128.54,128.52,2.28e-06]
[1765884843167,108.9605,128.52,128.44,3.18]
[1765884843371,108.9766,128.5,128.44,3.18]
[1765884843665,108.9605,128.52,128.44,3.18]
[1765884843666,66.1,128.52,128.44,3.18]
[1765884843860,175.0594,128.52,128.44,3.18]
[1765884844163,175.0594,128.52,128.51,9.679e-05]
[1765884844355,175.0594,128.52,128.44,3.18]
[1765884844356,108.9759,128.5,128.44,3.18]
[1765884844868,7.0062,128.49,128.44,3.18]
[1765884845069,175.0594,128.52,128.44,3.18]
[1765884845461,175.0594,128.52,128.51,1.90249955]
[1765884845665,175.0594,128.52,128.51,9.955e-05]
[1765884846165,108.9748,128.5,128.44,3.18]
[1765884846360,175.0851,128.49,128.44,3.18]
[1765884847164,0.05678886,128.48,128.45,0.04935479]
[1765884848368,0.05678886,128.48,128.38,209.2596]
[1765884848369,109.0255,128.44,128.38,3.21]
[1765884848572,109.0444,128.42,128.35,3.21]
[1765884849471,7.06638108,128.4,128.37,0.05287338]
[1765884850070,0.05558108,128.4,128.37,3.26287338]
[1765884850368,66.19558108,128.4,128.37,0.05287338]
[1765884851263,175.25618108,128.4,128.37,0.05287338]
[1765884851659,73.20688108,128.4,128.37,0.05287338]
[1765884852268,182.26598108,128.4,128.37,0.05287338]
[1765884852766,66.19558108,128.4,128.37,0.05287338]
[1765884853763,0.05558108,128.4,128.37,0.05287338]
[1765884853963,66.21558108,128.4,128.37,0.05287338]
[1765884856475,66.21558108,128.4,128.37,3.26287338]
[1765884857678,66.21558108,128.4,128.37,0.05287338]
[1765884858570,66.21558108,128.4,128.37,3.26287338]
[1765884858773,0.05558108,128.4,128.37,3.26287338]
[1765884859077,11.15446545,128.48,128.38,3.21]
[1765884859369,186.37026545,128.45,128.42,1.87298361]
[1765884859577,66.2,128.45,128.37,3.21]
[1765884859770,66.2,128.44,128.37,3.21]
[1765884859969,0.05965168,128.42,128.4,3.21]
[1765884861272,0.05965168,128.42,128.39,0.04961674]
[1765884862180,0.05965168,128.42,128.39,3.25961674]
[1765884862668,0.05965168,128.42,128.39,0.04961674]
[1765884863069,66.25965168,128.42,128.39,0.04961674]
[1765884863869,66.25965168,128.42,128.39,3.25961674]
[1765884866081,66.25965168,128.42,128.39,0.04961674]
[1765884867482,66.25965168,128.42,128.39,3.25961674]
[1765884868979,0.05965168,128.42,128.39,3.25961674]
[1765884869772,66.2,128.48,128.4,3.21]
[1765884870487,73.2067,128.48,128.42,3.21]
[1765884870676,0.05398061,128.46,128.44,0.05163403]
[1765884870984,7.06158061,128.46,128.44,0.05163403]
[1765884871691,0.05398061,128.46,128.44,0.05163403]
[1765884880289,116.06918061,128.46,128.45,7.444e-05]
[1765884880487,121.68568257,128.46,128.44,0.05163403]
[1765884880790,114.64306364,128.45,128.38,3.06]
[1765884880990,66.2,128.44,128.38,3.06]
[1765884881386,66.2,128.46,128.38,3.06]
[1765884881585,5.64342691,128.45,128.44,1.91571084]
[1765884883194,7.0087,128.44,128.43,0.05886677]
[1765884883396,12.65212691,128.44,128.43,0.05886677]
[1765884883893,5.64342691,128.44,128.43,0.05886677]
[1765884885593,12.65212691,128.44,128.43,0.05886677]
[1765884887298,19.8629607,128.44,128.43,0.05886677]
[1765884888000,7.0104,128.41,128.37,3.06]
[1765884888202,66.2,128.42,128.37,3.06]
[1765884888696,73.2099,128.42,128.37,3.06]
[1765884888900,5.62589951,128.41,128.37,3.06]
[1765884889093,0.0578543,128.4,128.38,3.11390927]
[1765884891399,7.009,128.44,128.39,3.06]
[1765884891601,5.6330576,128.43,128.39,3.06]
[1765884891806,7.009,128.44,128.39,3.06]
[1765884892109,5.63305729,128.43,128.39,3.06]
[1765884892309,0.05516965,128.42,128.39,3.06]
[1765884892699,8.36798379,128.49,128.4,3.06]
[1765884893008,5.63384046,128.48,128.44,3.06]
[1765884893305,7.0068,128.48,128.44,3.06]
[1765884893706,0.05258813,128.47,128.45,0.04933555]
[1765884896504,0.05258813,128.47,128.45,3.10933555]
[1765884900906,0.05258813,128.47,128.45,0.04933555]
[1765884901209,66.2,128.46,128.45,0.04933555]
[1765884901909,109.0334,128.43,128.36,3.06]
[1765884902102,115.88974223,128.43,128.36,3.06]
[1765884902302,122.89894223,128.43,128.42,1.93366668]
[1765884904000,80.06554223,128.43,128.42,1.93366668]
[1765884904201,80.06554223,128.43,128.41,0.05530577]
[1765884905410,68.76146543,128.43,128.41,3.36530577]
[1765884906611,75.77066543,128.43,128.41,3.36530577]
[1765884906812,75.77066543,128.43,128.41,0.05530577]
[1765884908016,68.76146543,128.43,128.41,3.36530577]
[1765884908803,75.77086543,128.43,128.41,0.05530577]
[1765884909412,68.76146543,128.43,128.41,3.36530577]
[1765884911215,66.2,128.43,128.41,3.36530577]
[1765884911516,2.56146543,128.43,128.41,3.36530577]
[1765884914619,0.05404461,128.44,128.41,3.36530577]
[1765884916820,2.56146543,128.42,128.41,0.05530577]
[1765884917022,2.56146543,128.42,128.29,3.31]
[1765884917023,109.1097,128.34,128.29,3.31]
[1765884917214,2.56146543,128.31,128.29,3.31]
[1765884917614,7.0147,128.33,128.29,3.31]
[1765884917615,175.3011,128.35,128.29,3.31]
[1765884917815,175.3011,128.35,128.34,7.7e-06]
[1765884918014,7.0145,128.34,128.31,0.05420095]
[1765884918415,7.07188873,128.34,128.31,0.05420095]
[1765884918921,2.56146543,128.32,128.31,0.05420095]
[1765884919522,0.05738873,128.34,128.31,3.36420095]
[1765884920318,0.05738873,128.34,128.31,0.05420095]
[1765884920519,0.05738873,128.34,128.31,3.36420095]
[1765884929132,7.07178873,128.34,128.31,3.36420095]
[1765884929622,109.1179,128.33,128.31,0.05420095]
[1765884930129,7.015,128.33,128.31,3.36420095]
[1765884930725,6.92804522,128.34,128.31,3.36420095]
[1765884932339,13.94244522,128.34,128.31,3.36420095]
[1765884932832,7.0149,128.33,128.31,0.05420095]
[1765884933333,7.0149,128.33,128.31,3.37420095]
[1765884934730,6.92804522,128.34,128.31,3.37420095]
[1765884935621,0.05738873,128.34,128.31,3.37420095]
[1765884938234,7.07168873,128.34,128.31,3.37420095]
[1765884940142,7.015,128.33,128.31,3.37420095]
[1765884941440,2.56615269,128.32,128.31,3.37420095]
[1765884942936,2.56615269,128.32,128.31,0.05420095]
[1765884943338,2.56615269,128.32,128.31,3.25420095]
[1765884944843,2.62354142,128.34,128.31,3.25420095]
[1765884948344,0.05738873,128.34,128.31,3.25420095]
[1765884956149,0.05738873,128.34,128.31,10.26980095]
[1765884956352,0.05738873,128.34,128.32,3.2]
[1765884958640,9.57735269,128.4,128.34,3.2]
[1765884958849,9.57735269,128.4,128.39,1.9283908]
[1765884959150,2.56615269,128.4,128.39,1.9283908]
[1765884959543,2.56615269,128.4,128.39,5.1283908]
[1765884959742,0.04953983,128.41,128.38,3.2546915]
[1765884960045,0.04953983,128.41,128.4,1.9285345]
[1765884960245,0.04953983,128.41,128.38,0.0546915]
[1765884960246,5.85063624,128.41,128.38,0.0546915]
[1765884960443,0.04953983,128.41,128.4,1.93115858]
[1765884960751,5.85021188,128.41,128.4,1.93115858]
[1765884961145,5.85021069,128.41,128.4,1.93115858]
[1765884964249,5.85021069,128.41,128.39,1.93115858]
[1765884964450,5.80067086,128.4,128.39,1.93115858]
[1765884964652,4.05433657,128.41,128.38,0.0546915]
[1765884964653,11.06483657,128.41,128.38,0.0546915]
[1765884964847,11.06483657,128.41,128.4,1.9315367]
[1765884965043,16.86908564,128.41,128.4,1.9315367]
[1765884971458,16.86908564,128.41,128.39,1.9315367]
[1765884971658,7.0114,128.39,128.38,0.0546915]
[1765884971860,12.82953765,128.39,128.38,0.0546915]
[1765884972056,7.0114,128.39,128.38,0.0546915]
[1765884972365,11.01619674,128.39,128.38,0.0546915]
[1765884974066,16.83468943,128.39,128.38,0.0546915]
[1765884977161,5.81849269,128.39,128.38,0.0546915]
[1765884978662,12.82989269,128.39,128.38,0.0546915]
[1765884979162,0.04953983,128.41,128.38,3.3946915]
[1765884979367,7.06013983,128.41,128.39,1.92877123]
[1765884980464,7.06013983,128.41,128.39,7.123e-05]
[1765884980465,11.06493657,128.41,128.39,7.123e-05]
[1765884980862,66.24,128.4,128.39,7.123e-05]
[1765884983166,72.06796507,128.4,128.39,7.123e-05]
[1765884984057,7.0114,128.39,128.38,0.0546915]
[1765884984368,9.83276181,128.39,128.34,3.34]
[1765884984570,4.00479674,128.37,128.36,6.854e-05]
[1765884984866,4.00479674,128.37,128.25,188.53509641]
[1765884984867,109.1096,128.34,128.28,3.34]
[1765884985061,72.06796507,128.33,128.28,3.34]
[1765884985261,66.24,128.33,128.28,3.34]
[1765884985569,0.05534651,128.32,128.29,3.39626716]
[1765884988675,7.07094651,128.32,128.29,3.39626716]
[1765885007589,7.0159,128.31,128.29,3.39626716]
[1765885008186,0.05534651,128.32,128.29,3.39626716]
[1765885008587,7.07074651,128.32,128.29,3.39626716]
[1765885010190,0.05534651,128.32,128.29,3.39626716]
[1765885015495,7.07074651,128.32,128.29,3.39626716]
[1765885020595,7.07074651,128.32,128.29,0.05626716]
[1765885020800,7.0161,128.31,128.29,0.05626716]
[1765885021001,11.02596764,128.31,128.29,0.05626716]
[1765885021298,11.02596764,128.31,128.3,5.202e-05]
[1765885023501,9.58414573,128.31,128.3,5.202e-05]
[1765885023705,9.58414573,128.31,128.29,0.05626716]
[1765885024201,7.017,128.29,128.26,3.08]
[1765885024502,2.56804573,128.27,128.26,3.08]
[1765885024999,2.56804573,128.27,128.24,3.11]
[1765885025301,2.56804573,128.27,128.25,3.16527401]
[1765885025890,9.58644573,128.27,128.25,0.05527401]
[1765885027605,7.0195,128.25,128.2,3.11]
[1765885027801,2.56804573,128.24,128.2,3.11]
[1765885028297,7.0195,128.25,128.2,3.11]
[1765885028502,2.56804573,128.24,128.2,3.11]
[1765885028706,2.62361543,128.24,128.22,3.11]
[1765885029500,2.62361543,128.24,128.21,0.05415797]
[1765885029501,116.2232,128.23,128.21,0.05415797]
[1765885029700,2.56804573,128.22,128.21,0.05415797]
[1765885031409,75.86814573,128.23,128.21,0.05415797]
[1765885031616,75.86814573,128.23,128.22,1.93306749]
[1765885032395,73.3001,128.23,128.22,6.749e-05]
[1765885032597,75.86814573,128.23,128.22,6.749e-05]
[1765885033506,73.3001,128.23,128.22,6.749e-05]
[1765885033902,75.86814573,128.23,128.22,6.749e-05]
[1765885034810,66.28,128.23,128.22,6.749e-05]
[1765885035007,0.0555697,128.24,128.21,5.7322037]
[1765885035319,66.3555697,128.24,128.21,3.16415797]
[1765885035512,66.3555697,128.24,128.21,5.7322037]
[1765885036608,73.3753697,128.24,128.21,3.16415797]
[1765885038204,66.3555697,128.24,128.21,3.16415797]
[1765885038406,0.0555697,128.24,128.23,3.11]
[1765885044615,0.0555697,128.24,128.23,5.67804573]
[1765885045220,0.0555697,128.24,128.23,2.56804573]
[1765885046525,0.0555697,128.24,128.21,5.7322037]
[1765885046821,0.0555697,128.24,128.22,3.11]
[1765885048227,0.0555697,128.24,128.23,3.11]
[1765885051719,0.0555697,128.24,128.21,3.16415797]
[1765885052721,7.0753697,128.24,128.21,3.16415797]
[1765885053137,0.0555697,128.24,128.21,3.16415797]
[1765885061338,0.0555697,128.24,128.22,3.19]
[1765885072139,0.0555697,128.24,128.21,3.24415797]
[1765885073639,7.0752697,128.24,128.21,3.24415797]
[1765885073834,2.56817835,128.23,128.21,0.05415797]
[1765885074030,111.77177835,128.23,128.17,3.19]
[1765885074234,175.4996,128.24,128.22,1.94199893]
[1765885074434,8.45091021,128.23,128.22,1.94199893]
[1765885075035,2.56817835,128.23,128.22,1.94199893]
[1765885075643,66.35216103,128.24,128.22,5.13199893]
[1765885075843,2.56817835,128.23,128.22,1.94199893]
[1765885076046,8.45208362,128.23,128.22,1.94199893]
[1765885076238,2.56817835,128.23,128.22,1.94199893]
[1765885078145,2.56817835,128.23,128.22,9.893e-05]
[1765885078346,9.58877835,128.23,128.21,0.05375463]
[1765885079239,9.58877835,128.23,128.22,1.94351426]
[1765885079438,15.48528397,128.23,128.22,1.94351426]
[1765885082147,15.48528397,128.23,128.21,0.05375463]
[1765885082347,9.58877835,128.23,128.21,0.05375463]
[1765885083349,7.0206,128.23,128.21,0.05375463]
[1765885088856,0.05216103,128.24,128.21,3.36375463]
[1765885090554,7.07196103,128.24,128.21,3.36375463]
[1765885091857,7.07196103,128.24,128.21,0.05375463]
[1765885092362,7.07196103,128.24,128.21,3.36375463]
[1765885092763,7.0205,128.23,128.21,0.05375463]
[1765885093465,11.03648658,128.23,128.21,0.05375463]
[1765885097161,11.03648658,128.23,128.22,1.94157456]
[1765885097366,16.93616207,128.23,128.22,1.94157456]
[1765885097959,16.93616207,128.23,128.22,7.456e-05]
[1765885100861,126.13896207,128.23,128.21,0.05375463]
[1765885101062,72.21967549,128.22,128.21,0.05375463]
[1765885101763,76.23566207,128.22,128.21,0.05375463]
[1765885108269,7.0221,128.2,128.14,3.31]
[1765885108465,11.03808658,128.2,128.14,3.31]
[1765885109270,0.0524371,128.18,128.17,3.31]
[1765885110379,0.0524371,128.18,128.16,3.36494864]
[1765885111083,7.0756371,128.18,128.16,3.36494864]
[1765885111286,120.33742368,128.18,128.16,0.05494864]